Cogmind - Beta 16 @@@ ROGUE MODE // 2026.01.25 @ 20:31:43 Player: Bt-7274 Result: Destroyed by Y-45 Defender with Beam Rifle Performance ------------- Evolutions (2) 1000 Regions Visited (4) 800 Robots Destroyed (18) 90 Value Destroyed (293) 293 Prototype IDs (3) 60 Alien Tech Used (0) 0 Bonus (0) 0 TOTAL SCORE: 2243 Bonus ------- None Cogmind --------- Core Integrity 0/550 Matter 211/300 Energy 100/100 System Corruption 0% Temperature Cool (27) Movement Core (50) Location -8/Materials Parts ------- > --- POWER (1) -------- (None) > --- PROPULSION (3) --- (None) > --- UTILITY (5) ------ Salvage Targeting Computer > --- WEAPON (2) ------- Axe > --- INVENTORY (5) ---- Compact Wheel Experimental Sensor Array Autogun High-powered Shotgun Peak State ------------ > --- POWER ------------ Ion Engine > --- PROPULSION ------- Improved Aluminum Leg Improved Aluminum Leg > --- UTILITY ---------- Small Storage Unit Visual Processing Unit Improved Terrain Scanner Seismic Detector > --- WEAPON ----------- Heavy Assault Rifle Autogun > --- INVENTORY -------- Aluminum Leg Wheel VTOL Module EM Pulse Gun Light Assault Rifle EMP Blaster Maul [Rating: 17] Favorites ----------- Power Ion Engine Engine Ion Engine Propulsion Improved Aluminum Leg Leg Improved Aluminum Leg Flight Unit Flight Unit Utility Small Storage Unit Device Improved Terrain Scanner Storage Small Storage Unit Processor Salvage Targeting Computer Hackware System Shield Weapon Light Assault Rifle Energy Gun Small Laser Ballistic Gun Light Assault Rifle Launcher EMP Blaster Slashing Weapon Axe Build | -11 -10 -9 -9 -8 ------- Run | Yrd Mat Mat Min Mat Slots Evolved 4 | . . 2 . 2 Power . | . . . . . Propulsion 1 | . . . . 1 Utility 3 | . . 2 . 1 Weapon . | . . . . . Parts Attached 22 | 6 4 6 2 4 Power 1 | 1 . . . . Engine 1 | 1 . . . . Core . | . . . . . Reactor . | . . . . . Propulsion 8 | 2 2 2 1 1 Treads . | . . . . . Leg 4 | 2 2 . . . Wheel . | . . . . . Hover . | . . . . . Flight 4 | . . 2 1 1 Utility 7 | 1 2 2 . 2 Device 2 | . 2 . . . Storage 1 | 1 . . . . Processor 3 | . . 2 . 1 Hackware 1 | . . . . 1 Protection . | . . . . . Artifact . | . . . . . Weapon 6 | 2 . 2 1 1 Energy Gun 1 | 1 . . . . Energy Cannon . | . . . . . Ballistic Gun 3 | 1 . 2 . . Ballistic Cannon . | . . . . . Launcher 1 | . . . 1 . Special Weapon . | . . . . . Impact Weapon . | . . . . . Slashing Weapon 1 | . . . . 1 Piercing Weapon . | . . . . . Special Melee Weapon . | . . . . . Unidentified Prototypes . | . . . . . Parts Lost 10 | . . . 4 6 Power 1 | . . . 1 . Propulsion 4 | . . . 1 3 Utility 4 | . . . 1 3 Weapon 1 | . . . 1 . Highest Loss Streak 6 | . . . 4 6 To Critical Strikes . | . . . . . Average Backups 6 | 3 7 7 3 5 Power . | . . . . . Propulsion 2 | 2 3 2 1 1 Utility . | . 1 . . 1 Weapon 2 | . 2 3 2 3 Tool/Special . | . . . . . Unused Backups 11 | . 3 3 . 5 Power . | . . . . . Propulsion 4 | . 1 1 . 2 Utility 3 | . 2 . . 1 Weapon 4 | . . 2 . 2 Tool/Special . | . . . . . Average Slot Usage (%) 81 | . 96 85 58 31 Engine 10 | . 14 11 3 . Leg 20 | . 28 20 . . Flight 3 | . . 1 18 12 Device 11 | . 10 16 15 4 Storage 10 | . 14 10 . . Processor 3 | . . 4 11 10 Energy Gun 8 | . 14 2 . . Ballistic Gun 12 | . 14 18 6 . Peak Build Rating 17 | 7 12 17 12 16 Average Rating 10 | 5 10 13 9 8 On Entrance 7 | . 7 10 10 9 Avg Prop Armor Cover (%) 11 | . 9 . 11 11 Naked Turns . | . . . . . Heaviest Build 18 | 12 13 18 8 4 Greatest Support 26 | 20 26 26 8 14 Greatest Overweight (x) 1 | . . . 1 . Average Overweight (x) . | . . . . . Largest Inventory Capacity 8 | 8 8 8 5 5 Average Capacity 7 | 7 8 7 5 5 Most Carried 8 | 6 8 8 5 5 Average Carried 6 | 3 7 7 3 4 Final Capacity 8 | 8 8 5 5 5 Final Carried 8 | 6 8 5 5 4 Class Distribution -------------------- 96% | Mutant 3% | Sprinter Dominant Class ---------------- Mutant | -10/Materials Mutant | -9/Materials Mutant | -9/Mines Mutant | -8/Materials Resources | -11 -10 -9 -9 -8 ----------- Run | Yrd Mat Mat Min Mat Matter Collected 459 | 273 37 55 51 43 Remotely . | . . . . . Salvage Created 498 | 124 37 182 104 51 Parts 41 | 7 4 16 12 2 Haulers Intercepted . | . . . . . Recyclers Shooed 1 | 1 . . . . Parts Field Recycled . | . . . . . Retrieved Matter . | . . . . . Parts Self-Destructed . | . . . . . Prevented . | . . . . . Parts Restored . | . . . . . Kills | -11 -10 -9 -9 -8 ------- Run | Yrd Mat Mat Min Mat Combat Hostiles Destroyed 12 | . 1 4 6 1 Melee 1 | . . . . 1 Guns 8 | . 1 4 3 . AOE 3 | . . . 3 . Classes Destroyed 6 | 2 2 2 . . Tunneler 2 | 2 . . . . Recycler 1 | 1 . . . . Operator 1 | . . 1 . . Watcher 2 | . 1 1 . . Swarmer 9 | . 1 2 6 . Sentry 3 | . . 2 . 1 Best Kill Streak 6 | 2 1 3 6 1 Combat Bots Only 6 | . 1 3 6 1 Max Kills in Single Turn 2 | 1 1 1 2 1 Gunslinging . | . . . . . Exploded 2 | . . . 2 . Melee 1 | . . . . 1 Uniques/NPCs Destroyed . | . . . . . Combat | -11 -10 -9 -9 -8 -------- Run | Yrd Mat Mat Min Mat Hostile Shots Fired 144 | . 4 18 29 93 Missed 59 | . 1 5 10 43 Hits 85 | . 3 13 19 50 Projectile 85 | . 3 13 19 50 AOE 1 | . . . . 1 Critical Strikes 3 | . . 1 . 2 Part Disruptions 1 | . 1 . . . Damage Taken 1161 | . 45 192 239 685 Core 656 | . 6 57 33 560 Absorbed by Shields . | . . . . . Core Remaining (%) 91 | 100 97 . 77 . Volleys Fired 48 | 13 12 13 10 . Largest 2 | 2 2 2 2 . Hottest 60 | 60 60 60 46 . Shots Fired 90 | 24 25 26 15 . Gun 85 | 24 25 26 10 . Cannon . | . . . . . Launcher 5 | . . . 5 . Special . | . . . . . Kinetic 56 | 13 13 20 10 . Thermal 29 | 11 12 6 . . Explosive . | . . . . . Electromagnetic 5 | . . . 5 . Robot Hit Streak 10 | 4 6 10 4 . Robot Miss Streak 8 | 3 8 3 3 . Penetration Max . | . . . . . Secondary Targets . | . . . . . Shots Hit Robots 48 | 14 10 17 6 1 Core Hits 26 | 5 5 9 6 1 Critical Kills . | . . . . . Critical Parts Destroyed . | . . . . . Critical Strikes . | . . . . . Melee Attacks 2 | . . . . 2 Impact . | . . . . . Slashing 2 | . . . . 2 Piercing . | . . . . . Sneak Attacks . | . . . . . Combat Hostiles . | . . . . . Follow-up Attacks . | . . . . . Damage Inflicted 702 | 137 115 212 193 45 Guns 540 | 137 115 212 76 . Cannons . | . . . . . Explosions 117 | . . . 117 . Melee 45 | . . . . 45 Ramming . | . . . . . Kinetic 329 | 60 49 144 76 . Thermal 211 | 77 66 68 . . Explosive . | . . . . . Electromagnetic 117 | . . . 117 . Impact . | . . . . . Slashing 45 | . . . . 45 Piercing . | . . . . . Highest Corruption 1 | . 1 . . . Average Corruption 1 | . 1 . . . Corruption Purged . | . . . . . Corruption Blocked . | . . . . . Effects 6 | . 6 . . . Message Errors 2 | . 2 . . . Heat Flow Errors 1 | . 1 . . . Energy Discharges 1 | . 1 . . . Data Loss (major) 1 | . 1 . . . Misfires 1 | . 1 . . . Overload Shots . | . . . . . Overflow Damage 30 | . . . 30 . Projectiles . | . . . . . Explosions 30 | . . . 30 . Melee . | . . . . . Knockbacks . | . . . . . Impact . | . . . . . Kinetic . | . . . . . Secondary . | . . . . . Self-Inflicted Damage 86 | . . . 86 . Shots 6 | . . . 6 . Rammed . | . . . . . Targets Rammed . | . . . . . Kicked . | . . . . . Crushed . | . . . . . Highest Temperature 236 | 40 236 46 1 5 Average Temperature 34 | 15 50 25 1 5 Received Heat Transfer 291 | . . 63 . 228 Siege Activations . | . . . . . Martial Activations . | . . . . . Shielding Activations . | . . . . . Robots Disrupted . | . . . . . Combat Hostiles . | . . . . . Robots Corrupted . | . . . . . Combat Hostiles . | . . . . . Parts Fried . | . . . . . Impact Corruptions . | . . . . . Robots Melted . | . . . . . Combat Hostiles . | . . . . . Parts Melted 1 | . . 1 . . Heat Transferred 475 | 175 150 150 . . Parts Sabotaged . | . . . . . Parts Stolen . | . . . . . Parts Stripped . | . . . . . Power Chain Reactions 2 | . . . 2 . Alert | -11 -10 -9 -9 -8 ------- Run | Yrd Mat Mat Min Mat Maximum Alert Level 1 | . . . . 1 Low Security (%) 97 | 100 100 100 100 82 Level 1 2 | . . . . 17 Level 2 . | . . . . . Level 3 . | . . . . . Level 4 . | . . . . . Level 5 . | . . . . . High Security . | . . . . . Max Security . | . . . . . Peak Influence 229 | 5 50 96 146 229 Initial 48 | . . . 29 48 Average 22 | 1 5 10 123 97 Influence Increases 743 | 15 92 138 167 331 Destroy 0b10 Robot/C 240 | . 20 80 120 20 Destroy 0b10 Robot/NC 30 | 15 5 10 . . Destroy Leader 64 | . 2 32 20 10 Successful Hack 20 | . 20 . . . Destroy Structure 14 | . . 1 12 1 Partial Spotted 30 | . . . . 30 Lose Combat Pursuer 345 | . 45 15 15 270 Influence Decreases 514 | 15 92 62 117 228 Entered New Map 125 | . . . 47 78 Time Decay 289 | 15 92 62 30 90 Lost Part 100 | . . . 40 60 Squads Dispatched . | . . . . . Investigation . | . . . . . Extermination . | . . . . . Reinforcement . | . . . . . Assault . | . . . . . Garrison . | . . . . . Intercept . | . . . . . Searches Triggered . | . . . . . Construction Impeded . | . . . . . Haulers Reinforced . | . . . . . Active Scanning Responses . | . . . . . Cargo Convoy Interrupts . | . . . . . Stealth | -11 -10 -9 -9 -8 --------- Run | Yrd Mat Mat Min Mat Distress Signals 5 | . 1 . . 4 Communications Jammed . | . . . . . Distress Signals . | . . . . . Times Spotted 57 | . 11 7 6 33 Peak Tracking Total 19 | . 3 5 6 19 Tactical Retreats 9 | . 2 1 1 5 Traps | -11 -10 -9 -9 -8 ------- Run | Yrd Mat Mat Min Mat Traps Triggered 2 | . 1 . . 1 Indirectly . | . . . . . Trap Hack Attempts . | . . . . . Triggered . | . . . . . Disarmed . | . . . . . Reprogrammed . | . . . . . Reused . | . . . . . Traps Extracted . | . . . . . Installed . | . . . . . Triggered . | . . . . . Machines | -11 -10 -9 -9 -8 ---------- Run | Yrd Mat Mat Min Mat Machines Disabled . | . . . . . Max in Single Turn . | . . . . . Machines Repaired . | . . . . . Machines Dismantled . | . . . . . Machines Sabotaged . | . . . . . Overloaded Fab Kills . | . . . . . Hacking | -11 -10 -9 -9 -8 --------- Run | Yrd Mat Mat Min Mat Machines Accessed 8 | . 5 1 . 2 Terminals 7 | . 5 1 . 1 Fabricators . | . . . . . Repair Stations . | . . . . . Recycling Units . | . . . . . Scanalyzers 1 | . . . . 1 Garrison Access . | . . . . . Total Hacks 18 | . 12 3 . 3 Successful 4 | . 3 . . 1 Failed 14 | . 9 3 . 2 Catastrophic 2 | . 1 . . 1 Database Lockouts . | . . . . . Manual 7 | . 6 . . 1 Terminals 16 | . 12 3 . 1 Fabricators . | . . . . . Repair Stations . | . . . . . Recycling Units . | . . . . . Scanalyzers 2 | . . . . 2 Garrison Access . | . . . . . Terminal Hacks 3 | . 3 . . . Prototype ID Bank 2 | . 2 . . . Terminal Index 1 | . 1 . . . Fabricator Hacks . | . . . . . Repair Station Hacks . | . . . . . Recycling Unit Hacks . | . . . . . Scanalyzer 1 | . . . . 1 Retrieve Study 1 | . . . . 1 Garrison Access Hacks . | . . . . . Unauthorized Hacks . | . . . . . Terminals . | . . . . . Fabricators . | . . . . . Repair Stations . | . . . . . Recycling Units . | . . . . . Scanalyzers . | . . . . . Garrison Access . | . . . . . Data Cores Recovered 1 | . . 1 . . Used . | . . . . . Hacking Detections 8 | . 5 1 . 2 Full Trace Events . | . . . . . Feedback Events . | . . . . . Feedback Blocked . | . . . . . Robot Schematics Acquired . | . . . . . Robots Built . | . . . . . Authchips . | . . . . . Time . | . . . . . Total Robot Build Rating . | . . . . . Part Schematics Acquired . | . . . . . Parts Built . | . . . . . Authchips . | . . . . . Time . | . . . . . Total Part Build Rating . | . . . . . Part Studies Acquired 1 | . . . . 1 Parts Repaired . | . . . . . Time . | . . . . . Parts Recycled . | . . . . . Recycled Matter . | . . . . . Retrieved Matter . | . . . . . Retrieved Components . | . . . . . Parts Scanalyzed . | . . . . . Part Schematics Acquired . | . . . . . Parts Damaged . | . . . . . Bothacking | -11 -10 -9 -9 -8 ------------ Run | Yrd Mat Mat Min Mat Used RIF Installer . | . . . . . Robots Hacked . | . . . . . Non-combat . | . . . . . Combat . | . . . . . Robot Hacks Applied . | . . . . . Relay Couplers Released . | . . . . . Fabnet Peak Effective % . | . . . . . Robots Rewired . | . . . . . Allies Hacked . | . . . . . Hacks Repelled . | . . . . . Allies | -11 -10 -9 -9 -8 -------- Run | Yrd Mat Mat Min Mat Total Allies . | . . . . . Largest Group . | . . . . . Highest-Rated Group . | . . . . . Highest-Rated Ally . | . . . . . Total Orders . | . . . . . Ally Attacks . | . . . . . Total Damage . | . . . . . Kills . | . . . . . Allies Corrupted . | . . . . . Allies Melted . | . . . . . Intel | -11 -10 -9 -9 -8 ------- Run | Yrd Mat Mat Min Mat Active Infowar (turns) 1033 | . 533 342 64 94 Optics 44 | . . 44 . . Terrain 714 | . 390 166 64 94 Seismic 509 | . 143 342 24 . Robot Analysis Total . | . . . . . Derelict Logs Recovered 2 | . . . 2 . Drone Launches . | . . . . . Drone Recoveries . | . . . . . Exploration | -11 -10 -9 -9 -8 ------------- Run | Yrd Mat Mat Min Mat Turns Passed 1483 | 170 721 342 64 186 Spaces Moved 1431 | 108 556 251 85 431 Core 146 | 12 . . . 134 Treads . | . . . . . Legs 864 | 96 556 212 . . Wheels . | . . . . . Hover . | . . . . . Flight 421 | . . 39 85 297 Fastest Speed 30 | 50 120 34 34 30 Average Speed 87 | 112 120 106 35 39 Slowest Speed 120 | 120 120 120 115 50 Overloaded Moves . | . . . . . Propulsion Burnouts . | . . . . . Robots Hopped 22 | . . . . 22 Potential Cave-ins . | . . . . . Cave-ins Triggered . | . . . . . Exploration Rate (%) 33 | 6 71 28 26 37 Regions Visited 4 Branch Regions 1 Pre-discovered Areas 1 | . . . 1 . Known Exits Taken . | . . . . . Unknown Exits Taken 4 | 1 1 1 1 . Scrap Searched . | . . . . . Spaces Dug 1 | . . . . 1 Terrain Destroyed 13 | . . . 12 1 Melee 1 | . . . . 1 Projectile . | . . . . . AOE 12 | . . . 12 . Terrain Rammed . | . . . . . Walls Destroyed . | . . . . . Machines Disabled . | . . . . . Actions | -11 -10 -9 -9 -8 --------- Run | Yrd Mat Mat Min Mat Total 1555 | 133 588 306 104 424 Wait 31 | . 8 19 3 1 Move 1388 | 107 555 250 84 392 Hop 17 | . . . . 17 Pick Up 20 | 7 5 4 1 3 Fast Attach 11 | 5 . 2 1 3 Attach 8 | 1 1 1 3 2 Detach 5 | . . 2 2 1 Swap 7 | . 3 4 . . Drop 18 | . 4 11 . 3 Fire 48 | 13 12 13 10 . Melee 2 | . . . . 2 Ram . | . . . . . Kick . | . . . . . Crush . | . . . . . Escape Stasis . | . . . . . Rewire . | . . . . . Trap . | . . . . . Miscellaneous . | . . . . . Route ------- -11/Scrapyard -10/Materials (discovered 4 exits: *Mat / [*Min x2] / [*Sub]) -9/Materials -9/Mines -8/Materials (discovered 1 exit: Fac) History --------- Turn | Location | Event 5 | -11/Scrapyard | Discovered new exit (range 16) 171 | -11/Scrapyard | Entered Materials 193 | -10/Materials | Discovered new exit (range 16) 305 | -10/Materials | Build established: Mutant 559 | -10/Materials | Discovered new exit (range 9) 655 | -10/Materials | Discovered new exit (range 12) 702 | -10/Materials | Discovered new exit (range 14) 892 | -10/Materials | Entered another Materials area 892 | -9/Materials | Evolved 2 slots: Utility x2 1227 | -9/Materials | Discovered new exit (range 8) 1234 | -9/Materials | Entered Mines 1278 | -9/Mines | Learned location of 1 exit from Materials 1279 | -9/Mines | Found a damaged Exp. Sensor Array with a note attached 1279 | -9/Mines | Found Prototype Device 1289 | -9/Mines | Lost 4 parts (1p1n1u1w) 1294 | -9/Mines | Discovered new exit (range 8) 1295 | -9/Mines | Found a hidden stash of uninstalled traps 1298 | -9/Mines | Entered Materials 1298 | -8/Materials | Evolved 2 slots: Propulsion x1, Utility x1 1299 | -8/Materials | Identified exit to Factory 1422 | -8/Materials | Core integrity fell below 50% 1452 | -8/Materials | Lost 6 parts (3n3u) 1455 | -8/Materials | Core integrity fell below 20% 1484 | -8/Materials | Destroyed by Y-45 Defender with Beam Rifle Last Messages --------------- 01401_ Cesium-ion Thruster destroyed. 01401_ S-10 Pest destroyed. 01403_ U-05 Engineer lays Concrete. 01404_ U-05 Engineer builds a Wall. 01410_ Fusion Modulator explodes. 01410_ S-10 Pest destroyed. 01410_ Fusion Modulator explodes. 01410_ Acquired 3 matter. 01410_ W-25 Informer sends out distress signal. 01410_ S-10 Pest destroyed. 01411_ Acquired 26 matter. 01414_ K-01 Serf collects debris. 01421_ Flight Unit destroyed. 01430_ Knocked back. 01435_ K-01 Serf cleans the Fusion Modulator. 01457_ K-01 Serf collects debris. 01457_ Critical hit (Burn: +37). 01459_ Processing Tank disabled. 01461_ K-01 Serf collects debris. 01484_ Critical hit (Burn: +37). Map ----- +----------------------------------------------------+ | ?????????########### """"" #?????##+#### | | ???????????????????# #?????# | | ??????????????????## #?????# """ | | ???????????????????# #?????# """ | | ??????????????????####+########## #?????# """ | | ??????????????????# #????# #?????# | | ??????????????????# ] #????# #?????# """ | | ??????#??#????????# #????# #?????# """ | | ??????????????????# """ [#????# #?????# """ | | ??????????????????# """"" #????# #?#???# | | ??????????????????# """"" #????# ###########+# | | ?????????#????????# """"" #????# # # | | ??????????????????# """ #????# # =//#% | | ??????????????????# #????# +/* = =# | | ??????????????????#######"####### # =/ # ## | | ???????????????????????#] # ######## #? | | ???????????????????????# """ # ######## #? | | ???????????????????????# """ # = #? | | ???????????????????????# ! """ # #? | | ????????????????#??????# + """ [[[ #? | | ???????????????????????# """ # """ [[ ## | | ???????????????????????# """ # """ [[ "" | | ???????????????????????# """ # Y" | | ???????????????????????# # "" | | ??????????????????########+###### ## | | ??????????????????# @ a #? | | ?????????????????#Y # ########### #? | | ?????????????????## """ # #?????????# #? | | ??????????????????# """?# #?????????# ########? | | ??????????????????# """?# #?????????# #???????? | | ??????????????????#! ??# #?????????# # ??????? | | ????????????????????###??# #?????????+ #???????? | | ?????????????????????????# #?????????# #???????? | | ?????????????????????????# #?????????# + ??????? | | ??????????????????######?# #??? ?????# #???????? | | ??????????????????# !! # #???######## ##???????? | | ??????????????????# ! # ##### """" # #????????? | | ??????????????????# + + ""T" / #????????? | | ??????????????????# # ##### # ########## | | ??????????????????# # #???# !* + | | ??????????????????# ?+ #???# * #+#### ##### | | ??????????????????######?###???# # ?# #???? | | ???????????????????#???????????####%### ## #???? | | ????????????????#????????????#????###?# ## #???? | | ??????????????????????????????????????# ## +???" | | ??????????????????????????????????????# ## #?? | | ??????????????????????????????????????# ## #? | | ?????????????????????????????????"????# ## ##### | | ?????????????????????????????????? ???#####? ????? | | ???????????????????????????????????????????? ????? | +----------------------------------------------------+ Best States ------------- Heat Dissipation 31 Energy Generation 10 Energy Capacity 250 Matter Stores 300 Matter Capacity 300 Sight Range 18 Terrain Scan Range 16 Terrain Scan Density 10 Evasion (%) 64 Targeting Accuracy 5 Salvage Targeting 1 Defensive Hacking 10 Item Schematics ----------------- None Robot Schematics ------------------ None Fabricated ------------ Nothing Repaired ---------- Nothing Studied --------- VTOL Module | -8/Materials | Hacked Alien Tech Used ----------------- None Achievements -------------- None Challenges ------------ None Game ------ Seed RainbowAlertMapper Manual? 0 Play Time 00:21:05 Cumulative 63.0 hours Start 2026.01.25 @ 20:04:52 End 2026.01.25 @ 20:31:43 Sessions 1 Manual Loads 0 Difficulty Rogue Special Mode None Game No. 78 Rogue 78 Adventurer 0 Explorer 0 Win Type - Total 1 Types 1/0/0/0/0/0/0/0/0/0 Lore% 40 Gallery% 46 Achievement% 30 Wizard Run 0 Options --------- Layout 1 ASCII 0 Keyboard 0 Movement Numpad Keybinds 0 Fullscreen 1 Font 32/SmallcapsGlow Map View 50x35 Zoom Use 0% Tactical HUD 1 Map Filters NONE Filters NONE Steam 1 RUN: 3d8e0682-5e88-4560-96c4-cfe3de27e017